{"text_format":"3","workbook":"xlsx","n_sheets":2,"sheets":["Tender Cover Sheet","Bill-Pricelist"],"not_rendered":{"images":1,"defined_names":17},"read":"whole","date_system":"1900"}

{"sheet":"Tender Cover Sheet","index":0,"n_rows":43,"n_cols":4,"rows_kept":43,"merged":[[21,2,23,2]]}
{"$rows_empty":9}
[null,"PRICING INFORMATION"]
[]
[null,"ENQUIRY No."]
[]
[null,"NAME OF PACKAGE:","Professional IT services to be provided to NTCSA to develop a comprehensive Digital Transformation Strategy."]
[]
[null,"TENDERER’S COMPANY NAME:  "]
[]
[]
[null,"TENDERED PRICE:  IN ZAR"]
[null,"(excluding VAT)"]
[null,"Note: Contract price adjustment is not applicable"]
[null,"RAND VALUE IN WORDS"]
[]
[]
[]
[]
[null,"TENDERED PRICE:  IN ZAR"]
[]
[]
[null,"DATE :"]
[]
[]
[]
[null,"FULL NAMES OF SIGNATORY:"]
[]
[]
[]
[null,"DESIGNATION OF SIGNATORY:"]
[]
[]
[]
[null,"SIGNATURE :"]
[{"$nulls":3}," "]

{"sheet":"Bill-Pricelist","index":1,"n_rows":37,"n_cols":7,"rows_kept":37,"merged":[[0,0,0,7],[2,1,2,6],[17,1,17,6]]}
[{"$f":"'Tender Cover Sheet'!C14","v":"Professional IT services to be provided to NTCSA to develop a comprehensive Digital Transformation Strategy."}]
[]
[null,"Professionals"]
[null,"Item","Description","Min. quantity of professionals required in number","Max quantity of hours applicable (6months)","Rate/hour","Amount"]
[null,1,"Lead Consultant / Project Director",4,{"$f":"8*5*24","v":960},null,{"$f":"E5*F5*D5","v":{"v":0,"d":"R0.00"}}]
[null,{"$f":"B5+1","v":2},"Digital Strategy Specialist",1,{"$f":"8*5*24","v":960},null,{"$f":"E6*F6*D6","v":{"v":0,"d":"R0.00"}}]
[null,{"$f":"B6+1","v":3},"Enterprise Architect",1,960,null,{"v":0,"d":"R0.00"}]
[null,4,"Data and Analytics Expert",1,960,null,{"v":0,"d":"R0.00"}]
[null,5,"Change Management Specialist",1,960,null,{"v":0,"d":"R0.00"}]
[null,6,"Business Process Analyst",1,960,null,{"v":0,"d":"R0.00"}]
[null,{"$f":"B10+1","v":7},{"$nulls":4},{"v":0,"d":"R0.00"}]
[null,{"$f":"B11+1","v":8},{"$nulls":4},{"v":0,"d":"R0.00"}]
[null,{"$f":"B12+1","v":9},{"$nulls":4},{"v":0,"d":"R0.00"}]
[null,{"$f":"B13+1","v":10},{"$nulls":4},{"v":0,"d":"R0.00"}]
[null,{"$f":"B14+1","v":11}]
[null,null,"Sub-total",{"$nulls":3},{"$f":"SUM(G5:G15)","v":{"v":0,"d":"R0.00"}}]
[null,"Note: Contract price adjustment is not applicable"]
[null,"Disbursements (If applicable)"]
[null,"Item","Description","Unit ","Quantity","Rate ","Amount"]
[null,1,"Accommodation ","Per night",1,null,{"$f":"E20*F20","v":{"v":0,"d":"R0.00"}}]
[null,{"$f":"B20+1","v":2},"Living out allowance","Per day",1,null,{"$f":"E21*F21","v":{"v":0,"d":"R0.00"}}]
[null,{"$f":"B21+1","v":3},"Travel (LDV)","KM (Kilometer)",1,null,{"v":0,"d":"R0.00"}]
[null,4,{"$nulls":4},{"v":0,"d":"R0.00"}]
[null,5,{"$nulls":4},{"v":0,"d":"R0.00"}]
[null,6,{"$nulls":4},{"v":0,"d":"R0.00"}]
[null,7,{"$nulls":4},{"v":0,"d":"R0.00"}]
[null,8,{"$nulls":4},{"v":0,"d":"R0.00"}]
[null,9,{"$nulls":4},{"v":0,"d":"R0.00"}]
[null,10,{"$nulls":4},{"v":0,"d":"R0.00"}]
[]
[]
[]
[]
[]
[null,null,"Flights and the like, shall be on a proven cost basis (three quotations), should they become applicable. Bidders to note provisions of National Treasury instruction 03 of 2017"]
[null,null,"Sub-total",{"$nulls":3},{"$f":"SUM(G20:G35)","v":{"v":0,"d":"R0.00"}}]
[null,"Note: Contract price adjustment is not applicable"]